fUSD/lending_fUSD_20260108
["ID","MTS","AMOUNT","RATE_DAILY","PERIOD"]
[400968778,1767875433119,-151.0,0.00010277,2]
[400968779,1767875433128,-151.0,0.00010277,2]
[400968780,1767875433137,-151.0,0.00010277,2]
[400968781,1767875433146,-510.51,0.00010481,2]
[400968782,1767875433155,-500.0,0.00010645,2]
[400968783,1767875433165,-500.0,0.00010645,2]
[400968784,1767875433174,-500.0,0.00010645,2]
[400968785,1767875433183,-500.0,0.00010645,2]
[400968786,1767875433192,-322.6107,0.00010645,2]
[400968787,1767875433202,-500.0,0.00010645,2]
[400968788,1767875433211,-500.0,0.00010645,2]
[400968789,1767875433220,-1500.0,0.00010645,2]
[400968790,1767875433229,-500.0,0.00010645,2]
[400968791,1767875433238,-1500.0,0.00010645,2]
[400968792,1767875433246,-500.0,0.00010645,2]
[400968793,1767875433255,-500.0,0.00010645,2]
[400968794,1767875433265,-1500.0,0.00010645,2]
[400968795,1767875433274,-500.0,0.00010645,2]
[400968796,1767875433283,-500.0,0.00010645,2]
[400968797,1767875433293,-1500.0,0.00010645,2]
[400968798,1767875433302,-500.0,0.00010645,2]
[400968799,1767875433312,-500.0,0.00010645,2]
[400968800,1767875433321,-1500.0,0.00010645,2]
[400968801,1767875433330,-500.0,0.00010645,2]
[400968802,1767875433339,-500.0,0.00010645,2]
[400968803,1767875433349,-500.0,0.00010645,2]
[400968804,1767875433358,-1500.0,0.00010645,2]
[400968805,1767875433368,-500.0,0.00010645,2]
[400968806,1767875433377,-500.0,0.00010645,2]
[400968807,1767875433387,-1606.84496361,0.00010645,2]
[400968808,1767875433398,-500.0,0.00010645,2]
[400968809,1767875433409,-500.0,0.00010645,2]
[400968810,1767875433419,-500.0,0.00010645,2]
[400968811,1767875433429,-500.0,0.00010645,2]
[400968812,1767875433438,-500.0,0.00010645,2]
[400968813,1767875433447,-500.0,0.00010645,2]
[400968814,1767875433457,-2000.0,0.00010645,2]
[400968815,1767875433470,-574.12855637,0.00010645,2]
[400968816,1767875433480,-500.0,0.00010645,2]
[400968817,1767875433489,-500.0,0.00010645,2]
[400968818,1767875433499,-500.0,0.00010645,2]
[400968819,1767875433510,-2000.0,0.00010645,2]
[400968820,1767875433520,-474.50188788,0.00010645,2]
[400968821,1767875433530,-500.0,0.00010645,2]
[400968822,1767875433541,-500.0,0.00010645,2]
[400968823,1767875433551,-2000.0,0.00010645,2]
[400968824,1767875433560,-533.03265921,0.00010645,2]
[400968825,1767875433570,-500.0,0.00010645,2]
[400968826,1767875433580,-2000.0,0.00010645,2]
[400968827,1767875433590,-250.0,0.00010645,2]
[400968828,1767875433599,-2000.0,0.00010645,2]
[400968829,1767875433610,-2000.0,0.00010645,2]
[400968830,1767875433620,-2000.0,0.00010645,2]
[400968831,1767875433629,-2000.0,0.00010645,2]
[400968832,1767875433639,-500.0,0.00010645,2]
[400968833,1767875433648,-250.0,0.00010645,2]
[400968834,1767875433658,-250.0,0.00010645,2]
[400968835,1767875433668,-250.0,0.00010645,2]
[400968836,1767875433678,-250.0,0.00010645,2]
[400968837,1767875433688,-250.0,0.00010645,2]
[400968838,1767875433697,-155.46227174,0.00010645,2]
[400968839,1767875433706,-250.0,0.00010645,2]
[400968840,1767875433715,-250.0,0.00010645,2]
[400968841,1767875433725,-250.0,0.00010645,2]
[400968842,1767875433734,-250.0,0.00010645,2]
[400968843,1767875433744,-250.0,0.00010645,2]
[400968844,1767875433754,-620.0,0.00010645,2]
[400968845,1767875433763,-250.0,0.00010645,2]
[400968846,1767875433772,-547.72733093,0.00010645,2]
[400968847,1767875433782,-510.51,0.00010755,2]
[400968848,1767875433791,-4515.03499363,0.0001076,2]
[400968849,1767875433800,-500.0,0.00010825,2]
[400968850,1767875433810,-215.48,0.00010854,2]
[400968851,1767875433820,-420.0,0.00011012,2]
[400968852,1767875433829,-420.0,0.00011012,2]
[400968853,1767875433840,-420.0,0.00011012,2]
[400968854,1767875433850,-1680.0,0.00011012,2]
[400968855,1767875433859,-255.0,0.00011012,2]
[400968856,1767875433869,-300.0,0.00011013,2]
[400968857,1767875433879,-195.0,0.00011013,2]
[400968858,1767875433888,-250.0,0.00011013,2]
[400968859,1767875433897,-350.0,0.00011013,2]
[400968860,1767875433906,-195.0,0.00011013,2]
[400968861,1767875433916,-510.51,0.00011029,2]
[400968862,1767875433925,-235.57802042,0.00011099,2]
[400968863,1767875433934,-235.57802038,0.00011099,2]
[400968864,1767875433943,-300.0,0.00011121,2]
[400968865,1767875433952,-300.0,0.00011121,2]
[400968866,1767875433962,-300.0,0.00011121,2]
[400968867,1767875433970,-441.28813732,0.00011121,2]
[400968868,1767875433980,-195.0,0.00011121,2]
[400968869,1767875433989,-250.0,0.00011121,2]
[400968870,1767875433999,-300.0,0.00011121,2]
[400968871,1767875434008,-195.0,0.00011121,2]
[400968872,1767875434018,-300.0,0.00011121,2]
[400968873,1767875434027,-195.0,0.00011122,2]
[400968874,1767875434036,-300.0,0.00011122,2]
[400968875,1767875434046,-500.0,0.00011185,2]
[400968876,1767875434055,-595.37131296,0.00011193,2]
[400968877,1767875434064,-510.54,0.00011303,2]
[400968878,1767875434073,-524.3343511,0.00011373,2]
[400968879,1767875434083,-1100.0,0.00011408,2]
[400968880,1767875434092,-617.40005154,0.00011741,2]
[400968881,1767875434101,-3932.14,0.00011781,2]
[400968882,1767875434111,-235.57802038,0.00011843,2]
[400968883,1767875434121,-1100.0,0.00012009,2]
[400968884,1767875434131,-334.5472959,0.00012014,2]
[400968885,1767875434141,-642.94,0.00012014,2]
[400968886,1767875434150,-587.0,0.00012113,2]
[400968887,1767875434160,-587.0,0.00012113,2]
[400968888,1767875434169,-176.0,0.00012113,2]
[400968889,1767875434179,-2351.0,0.00012113,2]
[400968890,1767875434188,-433.0,0.00012113,2]
[400968891,1767875434196,-640.24385345,0.00012289,2]
[400968892,1767875434206,-151.0,0.00012495,2]
[400968893,1767875434215,-151.0,0.00012521,2]
[400968894,1767875434225,-164.25854781,0.00012532,2]
[400968895,1767875434234,-1100.0,0.00012641,2]
[400968896,1767875434244,-235.57802038,0.00012709,2]
[400968897,1767875434253,-663.93287602,0.00012837,2]
[400968898,1767875434262,-250.0,0.00013229,2]
[400968899,1767875434272,-215.9881696,0.00013303,2]
[400968900,1767875434283,-1100.0,0.00013306,2]
[400968901,1767875434293,-823.0,0.00013324,2]
[400968902,1767875434304,-823.0,0.00013324,2]
[400968903,1767875434314,-3292.0,0.00013324,2]
[400968904,1767875434323,-736.0,0.00013324,2]
[400968905,1767875434332,-2935.96583492,0.00013358,2]
[400968906,1767875434342,-346.92554585,0.00013383,2]
[400968907,1767875434352,-172.30839183,0.00013383,2]
[400968908,1767875434361,-688.49839244,0.00013385,2]
[400968909,1767875434371,-235.57802038,0.00013574,2]
[400968910,1767875434381,-500.0,0.00013698,2]
[400968911,1767875434390,-174.0797667,0.00013698,2]
[400968912,1767875434400,-500.0,0.00013698,2]
[400968913,1767875434409,-500.0,0.00013698,2]
[400968914,1767875434640,-500.0,0.00013698,2]
[400968915,1767875434650,-580.31842491,0.00013698,2]
[400968916,1767875434661,-500.0,0.00013698,2]
[400968917,1767875434671,-525.03126034,0.00013698,2]
[400968918,1767875434680,-500.0,0.00013698,2]
[400968919,1767875434689,-429.86452012,0.00013698,2]
[400968920,1767875434699,-500.0,0.00013698,2]
[400968921,1767875434709,-500.0,0.00013698,2]
[400968922,1767875434719,-500.0,0.00013698,2]
[400968923,1767875434728,-500.0,0.00013698,2]
[400968924,1767875434737,-500.0,0.00013698,2]
[400968925,1767875434748,-500.0,0.00013698,2]
[400968926,1767875434758,-500.0,0.00013698,2]
[400968927,1767875434768,-500.0,0.00013698,2]
[400968928,1767875434778,-500.0,0.00013698,2]
[400968929,1767875434788,-321.10769147,0.00013698,2]
[400968930,1767875434798,-500.0,0.00013698,2]
[400968931,1767875434807,-239.30650294,0.00013698,2]
[400968932,1767875434818,-500.0,0.00013698,2]
[400968933,1767875434829,-500.0,0.00013698,2]
[400968934,1767875434840,-500.0,0.00013698,2]
[400968935,1767875434850,-500.0,0.00013698,2]
[400968936,1767875434859,-500.0,0.00013698,2]
[400968937,1767875434869,-500.41600195,0.00013698,2]
[400968938,1767875434879,-500.0,0.00013698,2]
[400968939,1767875434888,-500.0,0.00013698,2]
[400968940,1767875434897,-500.0,0.00013698,2]
[400968941,1767875434906,-500.0,0.00013698,2]
[400968942,1767875434916,-500.0,0.00013698,2]
[400968943,1767875434925,-500.0,0.00013698,2]
[400968944,1767875434934,-500.0,0.00013698,2]
[400968945,1767875434943,-502.28702111,0.00013698,2]
[400968946,1767875434952,-500.0,0.00013698,2]
[400968947,1767875434961,-500.0,0.00013698,2]
[400968948,1767875434971,-500.0,0.00013698,2]
[400968949,1767875434981,-500.0,0.00013698,2]
[400968950,1767875434990,-500.0,0.00013698,2]
[400968951,1767875434999,-500.0,0.00013698,2]
[400968952,1767875435009,-500.0,0.00013698,2]
[400968953,1767875435020,-500.0,0.00013698,2]
[400968954,1767875435031,-500.0,0.00013698,2]
[400968955,1767875435041,-500.0,0.00013698,2]
[400968956,1767875435050,-500.0,0.00013698,2]
[400968957,1767875435060,-500.0,0.00013698,2]
[400968958,1767875435069,-500.0,0.00013698,2]
[400968959,1767875435080,-314.03395353,0.00013698,2]
[400968960,1767875435089,-500.0,0.00013698,2]
[400968961,1767875435101,-500.0,0.00013698,2]
[400968962,1767875435110,-709.3,0.00013699,2]
[400968963,1767875435122,-329.57,0.00013699,2]
[400968964,1767875435131,-798.62968563,0.00013933,2]
[400968965,1767875435140,-1100.0,0.00014007,2]
[400968966,1767875435151,-34536.55,0.00014158,2]
[400968967,1767875435160,-200.0,0.00014276,2]
[400968968,1767875435170,-235.57802038,0.00014439,2]
[400968969,1767875435180,-1152.0,0.00014656,2]
[400968970,1767875435189,-1152.0,0.00014656,2]
[400968971,1767875435198,-1252.0,0.00014656,2]
[400968972,1767875435208,-4609.0,0.00014657,2]
[400968973,1767875435217,-1100.0,0.00014707,2]
[400968974,1767875435227,-359.76179104,0.00014752,2]
[400968975,1767875435236,-500.0,0.00014763,2]
[400968976,1767875435245,-500.0,0.00014763,2]
[400968977,1767875435255,-500.0,0.00014763,2]
[400968978,1767875435271,-500.0,0.00014763,2]
[400968979,1767875435282,-166.66,0.00014801,2]
[400968980,1767875435292,-166.66,0.00015113,2]
[400968981,1767875435301,-215.48,0.00015195,2]
[400968982,1767875435310,-863.08872571,0.00015212,2]
[400968983,1767875435320,-13519.0,0.00015304,2]
[400968984,1767875435329,-235.57802038,0.00015304,2]
[400968985,1767875435339,-1000.0,0.0001531,2]
[400968986,1767875435348,-1000.0,0.0001531,2]
[400968987,1767875435357,-377.66780599,0.0001531,2]
[400968988,1767875435367,-633.20600999,0.0001531,2]
[400968989,1767875435383,-166.66,0.00015424,2]
[400968990,1767875435401,-1100.0,0.00015442,2]
[400968991,1767875435411,-1330.0,0.00015554,2]
[400968992,1767875435419,-2436.0,0.00015554,2]
[400968993,1767875435429,-1000.0,0.00015593,2]
[400968994,1767875435439,-166.66,0.00015736,2]
[400968995,1767875435449,-180.0,0.00015776,2]
[400968996,1767875435458,-1500.0,0.00015858,2]
[400968997,1767875435473,-1500.0,0.00015858,2]
[400968998,1767875435483,-206.29912073,0.00016033,2]
[400968999,1767875435492,-166.66,0.00016048,2]
[400969000,1767875435502,-157.72323008,0.0001609,2]
[400969001,1767875435512,-3421.9101777,0.00016111,2]
[400969002,1767875435522,-7747.65,0.00016116,2]
[400969003,1767875435532,-445.85648753,0.00016121,2]
[400969004,1767875435543,-1613.0,0.00016122,2]
[400969005,1767875435552,-1613.0,0.00016122,2]
[400969006,1767875435562,-6453.0,0.00016122,2]
[400969007,1767875435571,-2129.0,0.00016127,2]
[400969008,1767875435580,-235.57802038,0.0001617,2]
[400969009,1767875435590,-9527.72200826,0.000162,5]
[400969010,1767875435599,-1100.0,0.00016214,2]
[400969011,1767875435610,-505.0,0.00016352,2]
[400969012,1767875435620,-1266.0,0.00016352,2]
[400969013,1767875435629,-914.0,0.00016352,2]
[400969014,1767875435639,-1204.815,0.00016352,2]
[400969015,1767875435649,-166.66,0.00016359,2]
[400969016,1767875435659,-1693.73266833,0.00016406,2]
[400969017,1767875435668,-1199.80942896,0.00016406,2]
[400969018,1767875435678,-759.43,0.00016438,2]
[400969019,1767875435687,-500.0,0.00016438,2]
[400969020,1767875435697,-500.0,0.00016438,2]
[400969021,1767875435706,-500.0,0.00016438,2]
[400969022,1767875435716,-500.0,0.00016438,2]
[400969023,1767875435726,-500.0,0.00016438,2]
[400969024,1767875435735,-500.0,0.00016438,2]
[400969025,1767875435745,-500.0,0.00016438,2]
[400969026,1767875435755,-500.0,0.00016438,2]
[400969027,1767875435764,-500.0,0.00016438,2]
[400969028,1767875435774,-500.0,0.00016438,2]
[400969029,1767875435783,-500.0,0.00016438,2]
[400969030,1767875435792,-500.0,0.00016438,2]
[400969031,1767875435802,-500.0,0.00016438,2]
[400969032,1767875435811,-414.66157034,0.00016438,2]
[400969033,1767875435820,-500.0,0.00016438,2]
[400969034,1767875435829,-500.0,0.00016438,2]
[400969035,1767875435839,-500.0,0.00016438,2]
[400969036,1767875435848,-500.0,0.00016438,2]
[400969037,1767875435858,-500.0,0.00016438,2]
[400969038,1767875435870,-500.0,0.00016438,2]
[400969039,1767875435879,-500.0,0.00016438,2]
[400969040,1767875435888,-500.0,0.00016438,2]
[400969041,1767875435897,-500.0,0.00016438,2]
[400969042,1767875435907,-500.0,0.00016438,2]
[400969043,1767875435916,-500.0,0.00016438,2]
[400969044,1767875435925,-500.0,0.00016438,2]
[400969045,1767875435934,-500.0,0.00016438,2]
[400969046,1767875435943,-500.0,0.00016438,2]
[400969047,1767875435952,-500.0,0.00016438,2]
[400969048,1767875435962,-500.0,0.00016438,2]
[400969049,1767875435971,-500.0,0.00016438,2]
[400969050,1767875435980,-500.0,0.00016438,2]
[400969051,1767875435989,-500.0,0.00016438,2]
[400969052,1767875435998,-500.0,0.00016438,2]
[400969053,1767875436007,-500.0,0.00016438,2]
[400969054,1767875436016,-500.0,0.00016438,2]
[400969055,1767875436026,-500.0,0.00016438,2]
[400969056,1767875436035,-500.0,0.00016438,2]
[400969057,1767875436044,-500.0,0.00016438,2]
[400969058,1767875436053,-500.0,0.00016438,2]
[400969059,1767875436062,-500.0,0.00016438,2]
[400969060,1767875436072,-500.0,0.00016438,2]
[400969061,1767875436082,-500.0,0.00016438,2]
[400969062,1767875436091,-500.0,0.00016438,2]
[400969063,1767875436100,-500.0,0.00016438,2]
[400969064,1767875436109,-500.0,0.00016438,2]
[400969065,1767875436119,-500.0,0.00016438,2]
[400969066,1767875436128,-500.0,0.00016438,2]
[400969067,1767875436138,-500.0,0.00016438,2]
[400969068,1767875436147,-631.95413306,0.00016438,2]
[400969069,1767875436156,-152.0,0.00016544,3]
[400969070,1767875436166,-168.0,0.00016641,2]
[400969071,1767875436175,-353.86,0.00016712,2]
[400969072,1767875436184,-152.0,0.00016756,4]
[400969073,1767875436194,-157.72323008,0.00016821,2]
[400969074,1767875436203,-2357.7,0.00016871,2]
[400969075,1767875436212,-787.62614361,0.00016903,2]
[400969076,1767875436222,-152.0,0.00016969,5]
[400969077,1767875436231,-2357.7,0.00016974,2]
[400969078,1767875436240,-250.0,0.00017,2]
[400969079,1767875436249,-5130.57151643,0.00017,2]
[400969080,1767875436259,-897.59905423,0.00017025,2]
[400969081,1767875436268,-235.57802038,0.00017035,2]
[400969082,1767875436277,-2357.7,0.00017076,2]
[400969083,1767875436286,-1357.0,0.000171,2]
[400969084,1767875436296,-2357.7,0.00017179,2]
[400969085,1767875436305,-152.0,0.00017181,6]
[400969086,1767875436314,-168.0,0.00017185,2]
[400969087,1767875436324,-168.0,0.00017218,2]
[400969088,1767875436333,-168.0,0.0001726,2]
[400969089,1767875436343,-151.0,0.00017279,2]
[400969090,1767875436352,-2357.7,0.00017282,2]
[400969091,1767875436361,-2357.7,0.00017384,2]
[400969092,1767875436370,-152.0,0.00017394,7]
[400969093,1767875436380,-2357.7,0.00017487,2]
[400969094,1767875436389,-2000.0,0.000175,2]
[400969095,1767875436399,-55607.82965925,0.00017525,2]
[400969096,1767875437307,-82485.19067968,0.00017525,2]
[400969097,1767875437318,-29165.35268337,0.00017525,2]
[400969098,1767875437328,-157.72323008,0.00017552,2]
[400969099,1767875437338,-2357.7,0.00017589,2]
[400969100,1767875437347,-151.0,0.00017589,2]
[400969101,1767875437357,-151.0,0.00017589,2]
[400969102,1767875437367,-152.0,0.00017606,8]
[400969103,1767875437377,-7416.62654947,0.0001764,2]
[400969104,1767875437387,-168.0,0.00017644,2]
[400969105,1767875437396,-2357.7,0.00017692,2]
[400969106,1767875437406,-500.0,0.00017724,2]
[400969107,1767875437416,-150.0,0.00017724,2]
[400969108,1767875437426,-150.0,0.00017724,2]
[400969109,1767875437435,-150.0,0.00017724,2]
[400969111,1767875437445,-221.27,0.00017724,2]
[400969112,1767875437454,-150.0,0.00017724,2]
[400969113,1767875437464,-150.0,0.00017724,2]
[400969114,1767875437477,-150.0,0.00017724,2]
[400969115,1767875437487,-500.0,0.00017724,2]
[400969116,1767875437497,-150.0,0.00017724,2]
[400969117,1767875437507,-500.0,0.00017724,2]
[400969118,1767875437516,-150.0,0.00017724,2]
[400969119,1767875437526,-150.0,0.00017724,2]
[400969120,1767875437536,-150.0,0.00017732,2]
[400969121,1767875437546,-2258.0,0.00017734,2]
[400969122,1767875437556,-2258.0,0.00017734,2]
[400969123,1767875437565,-9035.0,0.00017735,2]
[400969124,1767875437575,-3620.0,0.00017739,2]
[400969125,1767875437585,-166.04276169,0.00017748,2]
[400969126,1767875437595,-25000.0,0.0001775,3]
[400969127,1767875437604,-25000.0,0.00017759,3]
[400969128,1767875437613,-15882.09097043,0.00017768,3]
[400969129,1767875437625,-9117.90902957,0.00017768,3]
[400969130,1767875437635,-25000.0,0.00017777,3]
[400969131,1767875437645,-500.0,0.00017779,2]
[400969132,1767875437655,-200.0,0.00017779,2]
[400969133,1767875437665,-150.0,0.00017779,2]
[400969134,1767875437674,-150.0,0.00017779,2]
[400969135,1767875437683,-150.0,0.00017779,2]
[400969136,1767875437692,-150.0,0.00017779,2]
[400969137,1767875437702,-500.0,0.00017779,2]
[400969138,1767875437711,-150.0,0.00017779,2]
[400969139,1767875437720,-500.0,0.00017779,2]
[400969140,1767875437730,-200.0,0.00017779,2]
[400969141,1767875437739,-296.0,0.00017779,2]
[400969142,1767875437749,-25000.0,0.00017786,3]
[400969143,1767875437758,-25000.0,0.00017794,3]
[400969144,1767875437768,-2357.7,0.00017795,2]
[400969145,1767875437778,-168.0,0.00017795,2]
[400969146,1767875437787,-196.86885843,0.00017797,2]
[400969147,1767875437797,-168.0,0.00017803,2]
[400969148,1767875437806,-163.172097,0.00017803,2]
[400969149,1767875437816,-163.172097,0.00017803,2]
[400969151,1767875437825,-163.172097,0.00017803,2]
[400969153,1767875437834,-163.172097,0.00017803,2]
[400969155,1767875437844,-151.0,0.00017803,2]
[400969157,1767875437853,-151.0,0.00017803,2]
[400969159,1767875437862,-151.0,0.00017803,2]
[400969161,1767875437872,-25000.0,0.00017803,3]
[400969163,1767875437881,-25000.0,0.00017812,3]
[400969165,1767875437891,-194.977273,0.00017818,2]
[400969167,1767875437900,-152.0,0.00017819,9]
[400969169,1767875437909,-25000.0,0.00017821,3]
[400969171,1767875437919,-151.0,0.00017821,2]
[400969173,1767875437928,-180.954169,0.00017821,2]
[400969175,1767875437937,-151.0,0.00017821,2]
[400969177,1767875437946,-180.954169,0.00017821,2]
[400969179,1767875437955,-151.0,0.00017821,2]
[400969181,1767875437964,-180.954169,0.00017821,2]
[400969183,1767875437973,-180.954169,0.00017821,2]
[400969185,1767875437982,-314.079832,0.00017821,2]
[400969187,1767875437992,-314.079832,0.00017821,2]
[400969188,1767875438001,-314.079832,0.00017821,2]
[400969190,1767875438011,-314.079832,0.00017821,2]
[400969193,1767875438020,-25000.0,0.0001783,3]
[400969195,1767875438030,-1047.53522858,0.0001783,2]
[400969197,1767875438039,-500.0,0.00017834,2]
[400969199,1767875438049,-200.0,0.00017834,2]
[400969201,1767875438059,-150.0,0.00017834,2]
[400969203,1767875438068,-150.0,0.00017834,2]
[400969204,1767875438078,-150.0,0.00017834,2]
[400969206,1767875438087,-500.0,0.00017834,2]
[400969208,1767875438097,-217.19962447,0.00017834,2]
[400969211,1767875438107,-500.88287597,0.00017834,2]
[400969212,1767875438116,-151.0,0.00017838,2]
[400969214,1767875438127,-151.0,0.00017838,2]
[400969216,1767875438136,-151.0,0.00017838,2]
[400969218,1767875438146,-151.0,0.00017838,2]
[400969220,1767875438156,-165.913293,0.00017838,2]
[400969222,1767875438166,-151.0,0.00017838,2]
[400969224,1767875438176,-151.0,0.00017838,2]
[400969226,1767875438185,-151.0,0.00017838,2]
[400969228,1767875438195,-25000.0,0.00017838,3]
[400969230,1767875438204,-150.0,0.00017844,2]
[400969232,1767875438214,-25000.0,0.00017847,3]
[400969235,1767875438224,-196.86885841,0.00017849,2]
[400969236,1767875438233,-200.0,0.00017855,2]
[400969238,1767875438243,-14528.41498042,0.00017855,2]
[400969240,1767875438253,-25000.0,0.00017856,3]
[400969243,1767875438263,-20695.95993965,0.00017865,3]
[400969245,1767875438275,-1254.41808677,0.00017865,3]
[400969247,1767875438286,-3049.62197358,0.00017865,3]
[400969249,1767875438295,-151.0,0.00017865,2]
[400969251,1767875438305,-25000.0,0.00017874,3]
[400969253,1767875438316,-151.0,0.00017874,2]
[400969255,1767875438325,-4389.86092817,0.00017882,3]
[400969257,1767875438337,-1548.74162155,0.00017882,3]
[400969261,1767875438364,-450.72894432,0.00017882,3]
[400969263,1767875438378,-1372.97586918,0.00017882,3]
[400969267,1767875438399,-150.0,0.00017786,2]
[400969269,1767875438409,-4503.07800707,0.00017882,3]
[400969271,1767875438420,-999.0,0.00017882,3]
[400969404,1767875439741,-8500.79489186,0.00011099,2]
[400969405,1767875439750,-3467.0,0.00015554,2]
[400969406,1767875439760,-151.0,0.00017589,2]
[400969407,1767875439769,-151.0,0.00017874,2]
[400969408,1767875439779,-151.0,0.00017874,2]
[400969409,1767875439788,-11735.61462971,0.00017882,3]
[400969410,1767875439796,-231.23799714,0.00017888,2]
[400969411,1767875439806,-9073.6551866,0.00017891,3]
[400969413,1767875439816,-4236.0,0.00017891,3]
[400969415,1767875439827,-899.21,0.00017891,3]
[400969417,1767875439838,-10791.1348134,0.00017891,3]
[400969419,1767875439847,-207.96061971,0.00017897,2]
[400969422,1767875439862,-597.61849702,0.00017897,2]
[400969428,1767875439910,-1479.44033289,0.00017897,2]
[400969430,1767875439921,-72.68055038,0.00017897,2]
[400969432,1767875439930,-3559.04365623,0.000179,3]
[400969434,1767875439941,-1326.85193225,0.000179,3]
[400969436,1767875439952,-8295.60858419,0.000179,3]
[400969439,1767875439963,-2284.99155734,0.000179,3]
[400969441,1767875439974,-2335.08328914,0.000179,3]
[400969489,1767875440371,-8500.79489185,0.00011099,2]
[400969491,1767875440380,-167.81789,0.00017589,2]
[400969493,1767875440390,-7198.42098085,0.000179,3]
[400969495,1767875440399,-10000.0,0.000179,2]
[400969497,1767875440408,-25000.0,0.000179,3]
[400969498,1767875440418,-151.0,0.000179,2]
[400969501,1767875440427,-196.86885841,0.000179,2]
[400969503,1767875440436,-235.57802038,0.000179,2]
[400969504,1767875440445,-423.76529882,0.000179,2]
[400969506,1767875440454,-150.0,0.00017907,2]
[400969508,1767875440466,-150.0,0.00017961,2]
[400969511,1767875440482,-168.0,0.00017968,2]
[400969512,1767875440493,-168.0,0.00017972,2]
[400969514,1767875440505,-352.9335528,0.00017973,2]
[400969516,1767875440515,-500.0,0.00017973,2]
[400969518,1767875440524,-500.0,0.00017973,2]
[400969520,1767875440533,-500.0,0.00017973,2]
[400969522,1767875440543,-500.0,0.00017973,2]
[400969524,1767875440553,-235.35795411,0.00017973,2]
[400969526,1767875440563,-500.0,0.00017973,2]
[400969528,1767875440572,-500.0,0.00017973,2]
[400969530,1767875440580,-505.27205439,0.00017973,2]
[400969532,1767875440590,-500.0,0.00017973,2]
[400969534,1767875440599,-500.0,0.00017973,2]
[400969536,1767875440609,-500.0,0.00017973,2]
[400969538,1767875440618,-500.0,0.00017973,2]
[400969540,1767875440627,-500.0,0.00017973,2]
[400969542,1767875440639,-500.0,0.00017973,2]
[400969544,1767875440648,-150.0,0.00017973,2]
[400969546,1767875440658,-150.0,0.00017973,2]
[400969548,1767875440667,-150.0,0.00017985,2]
[400969550,1767875440675,-272.405,0.0001799,2]
[400969552,1767875440684,-165.91168261,0.00017999,2]
[400969554,1767875440694,-300.0,0.00017999,2]
[400969556,1767875440703,-666.0,0.00017999,2]
[400969558,1767875440712,-300.0,0.00017999,2]
[400969560,1767875440722,-300.0,0.00017999,2]
[400969562,1767875440731,-300.0,0.00017999,2]
[400969564,1767875440740,-300.0,0.00017999,2]
[400969566,1767875440750,-3626409.12516911,0.00018,2]
[400969568,1767875440759,-1188.17087136,0.00018,2]
[400969570,1767875440768,-512.89819875,0.00018,2]
[400969572,1767875440777,-512.89819875,0.00018,2]
[400969574,1767875440787,-512.89819875,0.00018,2]
[400969576,1767875440796,-512.89819875,0.00018,2]
[400969578,1767875440805,-512.89819875,0.00018,2]
[400969580,1767875440814,-512.89819875,0.00018,2]
[400969582,1767875440823,-512.89819875,0.00018,2]
[400969584,1767875440832,-512.89819875,0.00018,2]
[400969586,1767875440841,-512.89819875,0.00018,2]